[Event "Early-Titled-Tuesday-Blitz-March-26-2024"]
[Site "Chess.com"]
[Date "2024.03.26"]
[Round "5"]
[White "ketster"]
[Black "daika91"]
[Result "1-0"]
[WhiteElo "2586"]
[BlackElo "2709"]
[TimeControl "180+1"]
[EndTime "8:54:21 PDT"]
[Termination "ketster won by resignation"]

1. d4 {[%clk 0:03:00.9]} 1... d5 {[%clk 0:00:12.8]} 2. c4 {[%clk 0:02:59.2]}
2... e6 {[%clk 0:00:11.9]} 3. Nf3 {[%clk 0:02:58.8]} 3... Nf6 {[%clk 0:00:12.2]}
4. g3 {[%clk 0:02:54]} 4... Be7 {[%clk 0:00:12.5]} 5. Bg2 {[%clk 0:02:53.5]}
5... O-O {[%clk 0:00:13.2]} 6. Bf4 {[%clk 0:02:50.5]} 6... dxc4 {[%clk
0:00:13.6]} 7. Qa4 {[%clk 0:02:49.2]} 7... a6 {[%clk 0:00:12.9]} 8. Qxc4 {[%clk
0:02:47]} 8... Nd5 {[%clk 0:00:12.7]} 9. Nc3 {[%clk 0:02:42.9]} 9... b5 {[%clk
0:00:12.1]} 10. Qb3 {[%clk 0:02:25]} 10... Nxf4 {[%clk 0:00:12.2]} 11. gxf4
{[%clk 0:02:23.7]} 11... Bb7 {[%clk 0:00:13.1]} 12. Qc2 {[%clk 0:02:08.6]} 12...
Qc8 {[%clk 0:00:11.8]} 13. Rg1 {[%clk 0:01:52]} 13... Nd7 {[%clk 0:00:09.7]} 14.
Ng5 {[%clk 0:01:38.8]} 14... Bxg5 {[%clk 0:00:09]} 15. Bxb7 {[%clk 0:01:29.6]}
15... Qxb7 {[%clk 0:00:09.9]} 16. fxg5 {[%clk 0:01:29.5]} 16... c5 {[%clk
0:00:08.6]} 17. Rd1 {[%clk 0:01:15.1]} 17... Rac8 {[%clk 0:00:06]} 18. d5 {[%clk
0:01:10.6]} 18... Rfe8 {[%clk 0:00:03.5]} 19. Ne4 {[%clk 0:01:00]} 19... exd5
{[%clk 0:00:01.8]} 20. Nd6 {[%clk 0:01:00.1]} 20... Qc6 {[%clk 0:00:02.4]} 21.
Nxc8 {[%clk 0:00:54.9]} 21... Rxc8 {[%clk 0:00:02.5]} 22. Qf5 {[%clk 0:00:42.4]}
22... Nb6 {[%clk 0:00:03.1]} 23. h4 {[%clk 0:00:37.6]} 23... Re8 {[%clk
0:00:03.8]} 24. h5 {[%clk 0:00:31.6]} 24... d4 {[%clk 0:00:03.2]} 25. g6 {[%clk
0:00:28.3]} 25... f6 {[%clk 0:00:03.3]} 26. gxh7+ {[%clk 0:00:27.6]} 26... Kh8
{[%clk 0:00:03.6]} 27. h6 {[%clk 0:00:26.9]} 27... Re7 {[%clk 0:00:03.6]} 28.
Qg6 {[%clk 0:00:22.7]} 28... Qd7 {[%clk 0:00:03.2]} 29. hxg7+ {[%clk 0:00:21.4]}
29... Rxg7 {[%clk 0:00:03.5]} 30. Qxf6 {[%clk 0:00:21.4]} 30... Nd5 {[%clk
0:00:03.6]} 31. Qf8+ {[%clk 0:00:17]} 31... Kxh7 {[%clk 0:00:02.8]} 32. Rxg7+
{[%clk 0:00:08.7]} 32... Qxg7 {[%clk 0:00:03.7]} 33. Qf5+ {[%clk 0:00:09]} 33...
Kh6 {[%clk 0:00:03.7]} 34. Qxd5 {[%clk 0:00:08.5]} 34... Qg1+ {[%clk 0:00:04.3]}
35. Kd2 {[%clk 0:00:08.8]} 35... Qg5+ {[%clk 0:00:04.7]} 36. Qxg5+ {[%clk
0:00:08.3]} 36... Kxg5 {[%clk 0:00:05.6]} 37. Rg1+ {[%clk 0:00:08.6]} 37... Kf4
{[%clk 0:00:06.5]} 38. Rg8 {[%clk 0:00:08.7]} 38... Ke4 {[%clk 0:00:06.8]} 39.
Ra8 {[%clk 0:00:08.6]} 39... Kd5 {[%clk 0:00:07.7]} 40. Rxa6 {[%clk 0:00:08.9]}
40... Kc4 {[%clk 0:00:08.6]} 41. Rc6 {[%clk 0:00:08]} 41... b4 {[%clk
0:00:09.5]} 42. b3+ {[%clk 0:00:06.8]} 42... Kb5 {[%clk 0:00:10.4]} 43. Rc8
{[%clk 0:00:07.3]} 43... Ka5 {[%clk 0:00:10.5]} 44. f4 {[%clk 0:00:07.7]} 44...
Kb5 {[%clk 0:00:11.4]} 45. f5 {[%clk 0:00:08.3]} 1-0

[Event "Early-Titled-Tuesday-Blitz-March-26-2024"]
[Site "Chess.com"]
[Date "2024.03.26"]
[Round "5"]
[White "reevecanada"]
[Black "Pelusiansky"]
[Result "1-0"]
[WhiteElo "2681"]
[BlackElo "2532"]
[TimeControl "180+1"]
[EndTime "8:54:21 PDT"]
[Termination "reevecanada won by resignation"]

1. b3 {[%clk 0:02:50.2]} 1... e5 {[%clk 0:02:58]} 2. Bb2 {[%clk 0:02:49.4]} 2...
Nc6 {[%clk 0:02:58.3]} 3. e4 {[%clk 0:02:48.3]} 3... Bc5 {[%clk 0:02:57.3]} 4.
Nf3 {[%clk 0:02:48.4]} 4... d6 {[%clk 0:02:53.4]} 5. c3 {[%clk 0:02:45.3]} 5...
Nf6 {[%clk 0:02:52.2]} 6. Bd3 {[%clk 0:02:44.8]} 6... O-O {[%clk 0:02:43.5]} 7.
Bc2 {[%clk 0:02:42]} 7... Re8 {[%clk 0:02:43.7]} 8. O-O {[%clk 0:02:41.9]} 8...
a5 {[%clk 0:02:44.2]} 9. d4 {[%clk 0:02:41.3]} 9... Bb6 {[%clk 0:02:39.4]} 10.
dxe5 {[%clk 0:02:38.1]} 10... dxe5 {[%clk 0:02:39.5]} 11. Na3 {[%clk 0:02:35.5]}
11... Be6 {[%clk 0:02:24.6]} 12. Qe2 {[%clk 0:02:34.3]} 12... Nh5 {[%clk
0:02:13]} 13. Rad1 {[%clk 0:02:26.1]} 13... Nf4 {[%clk 0:02:09.5]} 14. Qe1
{[%clk 0:02:22]} 14... Qf6 {[%clk 0:02:08.8]} 15. Bc1 {[%clk 0:02:09.6]} 15...
Nh3+ {[%clk 0:01:33.1]} 16. gxh3 {[%clk 0:01:33.7]} 16... Qxf3 {[%clk
0:01:32.6]} 17. Rd3 {[%clk 0:01:32.4]} 17... Qh5 {[%clk 0:01:21.1]} 18. Rg3
{[%clk 0:01:26.3]} 18... Rad8 {[%clk 0:00:57.4]} 19. Bd1 {[%clk 0:01:22.4]}
19... Rxd1 {[%clk 0:00:40.3]} 20. Qxd1 {[%clk 0:01:22.2]} 20... Qxd1 {[%clk
0:00:37.6]} 21. Rxd1 {[%clk 0:01:22.3]} 21... Bc5 {[%clk 0:00:35.1]} 22. Nb5
{[%clk 0:01:20.6]} 22... Bb6 {[%clk 0:00:34.6]} 23. Bh6 {[%clk 0:01:19]} 23...
g6 {[%clk 0:00:35]} 24. Bg5 {[%clk 0:01:18.3]} 24... Kg7 {[%clk 0:00:31.9]} 25.
Rf3 {[%clk 0:01:18.8]} 25... f5 {[%clk 0:00:30.5]} 26. Be3 {[%clk 0:01:02.4]}
26... fxe4 {[%clk 0:00:28.1]} 27. Rg3 {[%clk 0:01:01.8]} 27... Bxe3 {[%clk
0:00:27]} 28. Rxe3 {[%clk 0:01:02.7]} 28... Re7 {[%clk 0:00:26.6]} 29. Rxe4
{[%clk 0:01:01]} 29... Bf5 {[%clk 0:00:27.2]} 30. Re3 {[%clk 0:01:00.4]} 30...
e4 {[%clk 0:00:27.6]} 31. f3 {[%clk 0:00:56.9]} 31... Ne5 {[%clk 0:00:23.6]} 32.
fxe4 {[%clk 0:00:55.9]} 32... Bd7 {[%clk 0:00:23.5]} 33. Nd4 {[%clk 0:00:54.3]}
33... Rf7 {[%clk 0:00:23]} 34. Rf1 {[%clk 0:00:53.2]} 34... Re7 {[%clk
0:00:23.4]} 35. Rg3 {[%clk 0:00:52.4]} 35... Nc6 {[%clk 0:00:15.4]} 36. Nf5+
{[%clk 0:00:51.4]} 36... Bxf5 {[%clk 0:00:15.9]} 37. exf5 {[%clk 0:00:51.7]}
37... Re2 {[%clk 0:00:15.6]} 38. fxg6 {[%clk 0:00:50.7]} 38... hxg6 {[%clk
0:00:16.5]} 39. Rf2 {[%clk 0:00:48.9]} 39... Re1+ {[%clk 0:00:17]} 40. Kg2
{[%clk 0:00:49.3]} 40... Ne5 {[%clk 0:00:17.2]} 41. h4 {[%clk 0:00:49.5]} 41...
Rd1 {[%clk 0:00:16.6]} 42. h5 {[%clk 0:00:48.7]} 42... Rd6 {[%clk 0:00:16.8]}
43. hxg6 {[%clk 0:00:48.6]} 43... Nxg6 {[%clk 0:00:17.6]} 44. h4 {[%clk
0:00:48.4]} 44... Kh6 {[%clk 0:00:18.2]} 45. Kh3 {[%clk 0:00:48.9]} 45... Re6
{[%clk 0:00:17.6]} 46. Rgf3 {[%clk 0:00:45.5]} 46... Re4 {[%clk 0:00:17.4]} 47.
Rf7 {[%clk 0:00:41.8]} 47... Rxh4+ {[%clk 0:00:17.2]} 48. Kg3 {[%clk 0:00:42.1]}
48... Re4 {[%clk 0:00:17]} 49. Rxc7 {[%clk 0:00:40.1]} 49... b5 {[%clk
0:00:15.6]} 50. Rf5 {[%clk 0:00:39.1]} 50... Re3+ {[%clk 0:00:14.9]} 51. Kg4
{[%clk 0:00:38.4]} 51... Re4+ {[%clk 0:00:14]} 52. Kf3 {[%clk 0:00:36.2]} 52...
Re1 {[%clk 0:00:14.3]} 53. Rxb5 {[%clk 0:00:35.5]} 53... Ra1 {[%clk 0:00:14.3]}
54. Rxa5 {[%clk 0:00:34.9]} 1-0

[Event "Early-Titled-Tuesday-Blitz-March-26-2024"]
[Site "Chess.com"]
[Date "2024.03.26"]
[Round "5"]
[White "mishanick"]
[Black "MyDream003"]
[Result "0-1"]
[WhiteElo "3077"]
[BlackElo "2802"]
[TimeControl "180+1"]
[EndTime "8:54:24 PDT"]
[Termination "MyDream003 won on time"]

1. d4 {[%clk 0:03:00.9]} 1... Nf6 {[%clk 0:02:55]} 2. c4 {[%clk 0:03:01.4]} 2...
e6 {[%clk 0:02:54.8]} 3. Nc3 {[%clk 0:03:02]} 3... d5 {[%clk 0:02:46.6]} 4. Bg5
{[%clk 0:03:01.1]} 4... Be7 {[%clk 0:02:42.9]} 5. e3 {[%clk 0:03:01.3]} 5... O-O
{[%clk 0:02:42.7]} 6. Qc2 {[%clk 0:03:01.1]} 6... Nbd7 {[%clk 0:02:41.9]} 7.
cxd5 {[%clk 0:02:59.9]} 7... exd5 {[%clk 0:02:39.3]} 8. Bd3 {[%clk 0:02:58.5]}
8... h6 {[%clk 0:02:38]} 9. Bf4 {[%clk 0:02:58.6]} 9... c6 {[%clk 0:02:27.5]}
10. Nf3 {[%clk 0:02:58.1]} 10... Nh5 {[%clk 0:02:22]} 11. Be5 {[%clk 0:02:58.4]}
11... Nhf6 {[%clk 0:02:18]} 12. O-O {[%clk 0:02:54.7]} 12... Nxe5 {[%clk
0:02:17.8]} 13. Nxe5 {[%clk 0:02:55.6]} 13... c5 {[%clk 0:02:08.9]} 14. f4
{[%clk 0:02:45.8]} 14... cxd4 {[%clk 0:02:07]} 15. exd4 {[%clk 0:02:45.7]} 15...
Qb6 {[%clk 0:02:03.6]} 16. Qf2 {[%clk 0:02:44.2]} 16... Rd8 {[%clk 0:01:38.2]}
17. Rae1 {[%clk 0:02:43.4]} 17... Bb4 {[%clk 0:01:34.2]} 18. Re3 {[%clk
0:02:39.2]} 18... Qxd4 {[%clk 0:01:26.1]} 19. Nc6 {[%clk 0:01:06.5]} 19... bxc6
{[%clk 0:01:26]} 20. Re8+ {[%clk 0:01:07.1]} 20... Rxe8 {[%clk 0:01:26.3]} 21.
Qxd4 {[%clk 0:01:07.8]} 21... c5 {[%clk 0:01:19.9]} 22. Qf2 {[%clk 0:01:08.1]}
22... c4 {[%clk 0:01:17.6]} 23. Bb1 {[%clk 0:00:57.3]} 23... Bd7 {[%clk
0:01:07.2]} 24. h3 {[%clk 0:00:56.6]} 24... Rac8 {[%clk 0:01:04.4]} 25. Kh2
{[%clk 0:00:46.4]} 25... Bc5 {[%clk 0:01:03.5]} 26. Qf3 {[%clk 0:00:29]} 26...
Bc6 {[%clk 0:00:58.4]} 27. Qd1 {[%clk 0:00:14.5]} 27... d4 {[%clk 0:00:56.8]}
28. Ne2 {[%clk 0:00:15.1]} 28... Nd5 {[%clk 0:00:44.2]} 29. Re1 {[%clk
0:00:06.9]} 29... Ne3 {[%clk 0:00:38]} 30. Qd2 {[%clk 0:00:07.2]} 30... Nxg2
{[%clk 0:00:34.3]} 31. Rf1 {[%clk 0:00:07]} 31... d3 {[%clk 0:00:29.2]} 32. Ng3
{[%clk 0:00:07.3]} 32... Be3 {[%clk 0:00:27.2]} 33. Qc3 {[%clk 0:00:03.5]} 33...
Bxf4 {[%clk 0:00:25.5]} 34. Qxc4 {[%clk 0:00:02.7]} 34... d2 {[%clk 0:00:05.3]}
0-1

[Event "Early-Titled-Tuesday-Blitz-March-26-2024"]
[Site "Chess.com"]
[Date "2024.03.26"]
[Round "5"]
[White "ChessSwole"]
[Black "emeli_chess"]
[Result "0-1"]
[WhiteElo "2675"]
[BlackElo "2401"]
[TimeControl "180+1"]
[EndTime "8:54:27 PDT"]
[Termination "emeli_chess won on time"]

1. e4 {[%clk 0:02:58.2]} 1... e5 {[%clk 0:02:59.4]} 2. d4 {[%clk 0:02:57.1]}
2... exd4 {[%clk 0:02:58.8]} 3. f4 {[%clk 0:02:57.8]} 3... Nc6 {[%clk
0:02:56.7]} 4. Nf3 {[%clk 0:02:56.9]} 4... Bc5 {[%clk 0:02:49.2]} 5. Bd3 {[%clk
0:02:56.4]} 5... d6 {[%clk 0:02:44.5]} 6. O-O {[%clk 0:02:55.2]} 6... Bg4 {[%clk
0:02:43.4]} 7. Qe1 {[%clk 0:02:54.9]} 7... Bxf3 {[%clk 0:02:42.9]} 8. Rxf3
{[%clk 0:02:54.6]} 8... Qe7 {[%clk 0:02:33.5]} 9. Qg3 {[%clk 0:02:53.5]} 9... g6
{[%clk 0:02:32.3]} 10. a3 {[%clk 0:02:52.3]} 10... O-O-O {[%clk 0:02:30.8]} 11.
b4 {[%clk 0:02:51.2]} 11... Bb6 {[%clk 0:02:30.1]} 12. Nd2 {[%clk 0:02:47.5]}
12... Kb8 {[%clk 0:02:14.7]} 13. Rb1 {[%clk 0:02:23.8]} 13... f5 {[%clk
0:02:10.1]} 14. exf5 {[%clk 0:02:12.1]} 14... gxf5 {[%clk 0:02:10]} 15. a4
{[%clk 0:02:10.2]} 15... a5 {[%clk 0:01:52.2]} 16. bxa5 {[%clk 0:02:07.1]} 16...
Nxa5 {[%clk 0:01:47.4]} 17. Nb3 {[%clk 0:01:45.5]} 17... Nxb3 {[%clk 0:01:46.3]}
18. Rxb3 {[%clk 0:01:39.9]} 18... Nf6 {[%clk 0:01:45.6]} 19. Rf1 {[%clk
0:01:31.1]} 19... Ne4 {[%clk 0:01:44]} 20. Qf3 {[%clk 0:01:31.2]} 20... Rhg8
{[%clk 0:01:36.5]} 21. Kh1 {[%clk 0:01:05.8]} 21... Nc5 {[%clk 0:01:28.6]} 22.
Rb4 {[%clk 0:00:44.8]} 22... Nxd3 {[%clk 0:01:19.1]} 23. cxd3 {[%clk 0:00:45.7]}
23... d5 {[%clk 0:01:08.5]} 24. Rb5 {[%clk 0:00:42.3]} 24... Rge8 {[%clk
0:00:45]} 25. a5 {[%clk 0:00:41.3]} 25... Ba7 {[%clk 0:00:43.8]} 26. a6 {[%clk
0:00:40.1]} 26... Bb6 {[%clk 0:00:43.6]} 27. Rxd5 {[%clk 0:00:32.8]} 27... Rxd5
{[%clk 0:00:38.7]} 28. Qxd5 {[%clk 0:00:33.7]} 28... bxa6 {[%clk 0:00:39.1]} 29.
Rg1 {[%clk 0:00:25.9]} 29... Qe6 {[%clk 0:00:35.5]} 30. Qf3 {[%clk 0:00:21.6]}
30... Qe2 {[%clk 0:00:34.2]} 31. Qc6 {[%clk 0:00:20]} 31... Re6 {[%clk
0:00:31.4]} 32. Qc4 {[%clk 0:00:20.1]} 32... Rh6 {[%clk 0:00:24.5]} 33. Ba3
{[%clk 0:00:18.3]} 33... Qg4 {[%clk 0:00:20.6]} 34. Rb1 {[%clk 0:00:08.8]} 34...
Qxf4 {[%clk 0:00:19.3]} 35. h3 {[%clk 0:00:08.1]} 35... Rxh3+ {[%clk 0:00:16.9]}
36. gxh3 {[%clk 0:00:07.8]} 36... Qf3+ {[%clk 0:00:17.3]} 37. Kg1 {[%clk
0:00:08.3]} 37... Qg3+ {[%clk 0:00:16.8]} 38. Kf1 {[%clk 0:00:08.8]} 38... Qf3+
{[%clk 0:00:17]} 39. Ke1 {[%clk 0:00:09.3]} 39... Qh1+ {[%clk 0:00:17.2]} 40.
Ke2 {[%clk 0:00:08.2]} 40... Qxb1 {[%clk 0:00:17.3]} 41. Bc1 {[%clk 0:00:04.1]}
41... Qb5 {[%clk 0:00:15.5]} 42. Qg8+ {[%clk 0:00:03.4]} 42... Kb7 {[%clk
0:00:14.6]} 43. Qxh7 {[%clk 0:00:03]} 43... Qe5+ {[%clk 0:00:14.2]} 44. Kd1
{[%clk 0:00:02.4]} 44... Ba5 {[%clk 0:00:13.4]} 0-1

[Event "Early-Titled-Tuesday-Blitz-March-26-2024"]
[Site "Chess.com"]
[Date "2024.03.26"]
[Round "5"]
[White "Vision_64"]
[Black "Dr_Thomas_Quilter"]
[Result "1-0"]
[WhiteElo "2249"]
[BlackElo "2063"]
[TimeControl "180+1"]
[EndTime "8:54:27 PDT"]
[Termination "Vision_64 won on time"]

1. e4 {[%clk 0:03:00.9]} 1... c6 {[%clk 0:02:59.8]} 2. d4 {[%clk 0:03:00.4]}
2... d5 {[%clk 0:02:59.5]} 3. exd5 {[%clk 0:03:01.3]} 3... cxd5 {[%clk 0:02:57]}
4. Bd3 {[%clk 0:03:01.2]} 4... Nc6 {[%clk 0:02:56.6]} 5. c3 {[%clk 0:03:01]}
5... Nf6 {[%clk 0:02:54.9]} 6. Bf4 {[%clk 0:03:00.9]} 6... g6 {[%clk 0:02:53]}
7. Nd2 {[%clk 0:02:43.3]} 7... Bf5 {[%clk 0:02:40.5]} 8. Bxf5 {[%clk 0:02:40.8]}
8... gxf5 {[%clk 0:02:41.4]} 9. Ne2 {[%clk 0:02:35.1]} 9... e6 {[%clk
0:02:40.8]} 10. O-O {[%clk 0:02:08.3]} 10... Bd6 {[%clk 0:02:33.8]} 11. f3
{[%clk 0:01:55.6]} 11... Rg8 {[%clk 0:02:24]} 12. Qe1 {[%clk 0:01:51.8]} 12...
Qc7 {[%clk 0:02:21.2]} 13. Qh4 {[%clk 0:01:49.1]} 13... Bxf4 {[%clk 0:02:12.6]}
14. Nxf4 {[%clk 0:01:46.2]} 14... Qe7 {[%clk 0:02:11.6]} 15. Rae1 {[%clk
0:01:41.6]} 15... O-O-O {[%clk 0:02:09.3]} 16. Nb3 {[%clk 0:01:35.9]} 16... b6
{[%clk 0:01:52]} 17. a4 {[%clk 0:01:29.9]} 17... Nd7 {[%clk 0:01:41]} 18. Qf2
{[%clk 0:01:18.3]} 18... Qd6 {[%clk 0:01:33.3]} 19. Nd3 {[%clk 0:01:10.3]} 19...
h5 {[%clk 0:01:26.7]} 20. a5 {[%clk 0:01:09.6]} 20... h4 {[%clk 0:00:55.9]} 21.
Qxh4 {[%clk 0:00:55.7]} 21... Rh8 {[%clk 0:00:36.2]} 22. Qf4 {[%clk 0:00:55.5]}
22... Qxf4 {[%clk 0:00:34.9]} 23. Nxf4 {[%clk 0:00:55.1]} 23... bxa5 {[%clk
0:00:35.8]} 24. Ra1 {[%clk 0:00:54.5]} 24... Nb6 {[%clk 0:00:34.8]} 25. Nxa5
{[%clk 0:00:53.3]} 25... Nxa5 {[%clk 0:00:29]} 26. Rxa5 {[%clk 0:00:54.2]} 26...
Rd7 {[%clk 0:00:29.2]} 27. Rfa1 {[%clk 0:00:51.3]} 27... Kb8 {[%clk 0:00:29.8]}
28. Nd3 {[%clk 0:00:47.9]} 28... Nc4 {[%clk 0:00:28.7]} 29. Rb5+ {[%clk
0:00:47.6]} 29... Rb7 {[%clk 0:00:27.9]} 30. Rxb7+ {[%clk 0:00:44.5]} 30... Kxb7
{[%clk 0:00:28.8]} 31. Nc5+ {[%clk 0:00:44.4]} 31... Kc6 {[%clk 0:00:17.5]} 32.
Ra6+ {[%clk 0:00:39.2]} 32... Kb5 {[%clk 0:00:13.3]} 33. Rxa7 {[%clk 0:00:37.3]}
33... f6 {[%clk 0:00:07.4]} 34. Rb7+ {[%clk 0:00:35.5]} 34... Kc6 {[%clk
0:00:07.6]} 35. Re7 {[%clk 0:00:26.5]} 35... Nxb2 {[%clk 0:00:07.1]} 36. Rxe6+
{[%clk 0:00:26.7]} 36... Kb5 {[%clk 0:00:08]} 37. Rd6 {[%clk 0:00:20.5]} 37...
Kc4 {[%clk 0:00:07.9]} 38. Rxf6 {[%clk 0:00:18.7]} 38... Nd1 {[%clk 0:00:07.4]}
39. Ne6 {[%clk 0:00:16.9]} 39... Nxc3 {[%clk 0:00:06.1]} 40. h3 {[%clk
0:00:16.6]} 40... Rg8 {[%clk 0:00:03.8]} 41. Rxf5 {[%clk 0:00:15.8]} 1-0

[Event "Early-Titled-Tuesday-Blitz-March-26-2024"]
[Site "Chess.com"]
[Date "2024.03.26"]
[Round "5"]
[White "Meri-Arabidze"]
[Black "Mikhail_Bryakin"]
[Result "0-1"]
[WhiteElo "2670"]
[BlackElo "2860"]
[TimeControl "180+1"]
[EndTime "8:54:31 PDT"]
[Termination "Mikhail_Bryakin won by resignation"]

1. d4 {[%clk 0:02:57.9]} 1... g6 {[%clk 0:02:56.1]} 2. g3 {[%clk 0:02:57.1]}
2... Bg7 {[%clk 0:02:49.5]} 3. Bg2 {[%clk 0:02:28.9]} 3... d6 {[%clk 0:02:47.1]}
4. Nf3 {[%clk 0:02:29]} 4... Nd7 {[%clk 0:02:46.8]} 5. O-O {[%clk 0:02:27.9]}
5... Ngf6 {[%clk 0:02:45.3]} 6. c4 {[%clk 0:02:28]} 6... O-O {[%clk 0:02:43.6]}
7. Nc3 {[%clk 0:02:28.3]} 7... e5 {[%clk 0:02:44.2]} 8. e4 {[%clk 0:02:28.5]}
8... exd4 {[%clk 0:02:38.1]} 9. Nxd4 {[%clk 0:02:29.4]} 9... Nc5 {[%clk
0:02:38.6]} 10. Re1 {[%clk 0:02:27.1]} 10... a5 {[%clk 0:02:38.6]} 11. f3 {[%clk
0:02:25.3]} 11... a4 {[%clk 0:02:38.2]} 12. Be3 {[%clk 0:02:24.9]} 12... Bd7
{[%clk 0:02:38.5]} 13. Qc2 {[%clk 0:02:24.2]} 13... Re8 {[%clk 0:02:38.9]} 14.
Rad1 {[%clk 0:02:24]} 14... c6 {[%clk 0:02:38.2]} 15. Nde2 {[%clk 0:02:20.2]}
15... Bf8 {[%clk 0:02:20.3]} 16. g4 {[%clk 0:02:13.9]} 16... Qc7 {[%clk
0:02:18.1]} 17. Bf4 {[%clk 0:02:13.2]} 17... a3 {[%clk 0:02:08.5]} 18. b3 {[%clk
0:02:11.8]} 18... Rad8 {[%clk 0:02:04.5]} 19. h3 {[%clk 0:02:11]} 19... Bc8
{[%clk 0:02:01.5]} 20. Kh1 {[%clk 0:02:08.4]} 20... h5 {[%clk 0:02:02]} 21. Bg5
{[%clk 0:02:04.4]} 21... Be7 {[%clk 0:01:58]} 22. Bc1 {[%clk 0:01:56]} 22...
hxg4 {[%clk 0:01:56.2]} 23. hxg4 {[%clk 0:01:56.4]} 23... Bxg4 {[%clk
0:01:48.1]} 24. fxg4 {[%clk 0:01:54.8]} 24... Nxg4 {[%clk 0:01:49]} 25. Ng3
{[%clk 0:01:40.9]} 25... Bh4 {[%clk 0:01:37.6]} 26. Bf4 {[%clk 0:01:39.3]} 26...
Ne6 {[%clk 0:01:36]} 27. Qd2 {[%clk 0:01:34.4]} 27... Qe7 {[%clk 0:01:30.2]} 28.
Bh3 {[%clk 0:01:19.7]} 28... Ne5 {[%clk 0:01:14.1]} 29. Rf1 {[%clk 0:01:03.8]}
29... Nxf4 {[%clk 0:01:07.1]} 30. Qxf4 {[%clk 0:01:03.3]} 30... Bg5 {[%clk
0:01:06.9]} 31. Qf2 {[%clk 0:01:01.3]} 31... Kg7 {[%clk 0:01:07.2]} 32. Kg2
{[%clk 0:00:58.9]} 32... Rh8 {[%clk 0:01:06.8]} 33. Rh1 {[%clk 0:00:58.9]} 33...
Rh4 {[%clk 0:01:04.4]} 34. Nce2 {[%clk 0:00:54.9]} 34... Rdh8 {[%clk 0:00:58.2]}
35. Nd4 {[%clk 0:00:55.1]} 35... Kg8 {[%clk 0:00:55.8]} 36. Nf3 {[%clk
0:00:51.3]} 36... Rf4 {[%clk 0:00:54.1]} 37. Nf5 {[%clk 0:00:12.7]} 37... gxf5
{[%clk 0:00:48.3]} 38. Bxf5 {[%clk 0:00:13]} 38... Rxh1 {[%clk 0:00:44]} 39.
Rxh1 {[%clk 0:00:13.9]} 39... Rxf3 {[%clk 0:00:38.1]} 40. Qa7 {[%clk 0:00:13.6]}
40... Rxf5 {[%clk 0:00:23.1]} 41. Qb8+ {[%clk 0:00:08.7]} 41... Qd8 {[%clk
0:00:23.4]} 42. Qxd8+ {[%clk 0:00:08.7]} 42... Bxd8 {[%clk 0:00:24.3]} 43. exf5
{[%clk 0:00:09.4]} 43... Bb6 {[%clk 0:00:20.8]} 44. Kg3 {[%clk 0:00:08.5]} 44...
Nd3 {[%clk 0:00:19.9]} 45. f6 {[%clk 0:00:07.3]} 45... Bd4 {[%clk 0:00:17.8]}
46. Rd1 {[%clk 0:00:06.9]} 46... Be5+ {[%clk 0:00:18]} 47. Kg4 {[%clk
0:00:05.4]} 47... Nf2+ {[%clk 0:00:17.6]} 0-1

[Event "Early-Titled-Tuesday-Blitz-March-26-2024"]
[Site "Chess.com"]
[Date "2024.03.26"]
[Round "5"]
[White "Hamisandwich"]
[Black "stollenmonster"]
[Result "1/2-1/2"]
[WhiteElo "2713"]
[BlackElo "2899"]
[TimeControl "180+1"]
[EndTime "8:54:33 PDT"]
[Termination "Game drawn by repetition"]

1. e4 {[%clk 0:02:57.3]} 1... c5 {[%clk 0:02:59.6]} 2. Nc3 {[%clk 0:02:55.1]}
2... Nc6 {[%clk 0:02:59]} 3. Bb5 {[%clk 0:02:52.4]} 3... g6 {[%clk 0:02:55.3]}
4. f4 {[%clk 0:02:45.3]} 4... Bg7 {[%clk 0:02:55.5]} 5. Nf3 {[%clk 0:02:45.3]}
5... Nd4 {[%clk 0:02:56.1]} 6. O-O {[%clk 0:02:38.3]} 6... e6 {[%clk 0:02:56.4]}
7. a4 {[%clk 0:02:27.7]} 7... Ne7 {[%clk 0:02:56.1]} 8. Nxd4 {[%clk 0:02:21.7]}
8... cxd4 {[%clk 0:02:57]} 9. Ne2 {[%clk 0:02:14.3]} 9... O-O {[%clk 0:02:54.8]}
10. c3 {[%clk 0:01:59.4]} 10... d5 {[%clk 0:02:32.3]} 11. e5 {[%clk 0:01:57.6]}
11... dxc3 {[%clk 0:02:27.5]} 12. bxc3 {[%clk 0:01:53.4]} 12... Bd7 {[%clk
0:02:24.3]} 13. Ba3 {[%clk 0:01:47.5]} 13... Re8 {[%clk 0:02:21.5]} 14. Nd4
{[%clk 0:01:41.7]} 14... Bxb5 {[%clk 0:02:18.8]} 15. axb5 {[%clk 0:01:33.6]}
15... Qd7 {[%clk 0:02:14.6]} 16. Bc5 {[%clk 0:01:12.7]} 16... a6 {[%clk
0:02:14.2]} 17. Qa4 {[%clk 0:01:09.1]} 17... Qc8 {[%clk 0:02:06.1]} 18. Qb4
{[%clk 0:00:53.2]} 18... Bf8 {[%clk 0:02:02.7]} 19. bxa6 {[%clk 0:00:47.4]}
19... Rxa6 {[%clk 0:02:00.5]} 20. Rxa6 {[%clk 0:00:47.4]} 20... bxa6 {[%clk
0:02:01.1]} 21. Ra1 {[%clk 0:00:46.2]} 21... Nc6 {[%clk 0:02:00.4]} 22. Nxc6
{[%clk 0:00:44.6]} 22... Qxc6 {[%clk 0:02:00.9]} 23. Ra5 {[%clk 0:00:34.9]}
23... Bxc5+ {[%clk 0:01:47.2]} 24. Rxc5 {[%clk 0:00:29.6]} 24... Qa8 {[%clk
0:01:47.4]} 25. Qa5 {[%clk 0:00:25.5]} 25... Qa7 {[%clk 0:01:34.4]} 26. d4
{[%clk 0:00:22]} 26... Qb8 {[%clk 0:01:28]} 27. Qxa6 {[%clk 0:00:20.1]} 27...
Qb1+ {[%clk 0:01:27.4]} 28. Qf1 {[%clk 0:00:20.8]} 28... Qc2 {[%clk 0:01:24.2]}
29. h3 {[%clk 0:00:15.5]} 29... Ra8 {[%clk 0:01:22.3]} 30. Kh2 {[%clk
0:00:14.6]} 30... Ra2 {[%clk 0:01:14.6]} 31. Qf3 {[%clk 0:00:10.5]} 31... h5
{[%clk 0:01:01.3]} 32. Qg3 {[%clk 0:00:06.8]} 32... Qd1 {[%clk 0:00:27]} 33.
Rc8+ {[%clk 0:00:06.4]} 33... Kh7 {[%clk 0:00:27.1]} 34. Qg5 {[%clk 0:00:07.2]}
34... Qf1 {[%clk 0:00:14.8]} 35. Rf8 {[%clk 0:00:02.9]} 35... Kg7 {[%clk
0:00:07.9]} 36. Rxf7+ {[%clk 0:00:01.3]} 36... Kxf7 {[%clk 0:00:08]} 37. Qf6+
{[%clk 0:00:02.2]} 37... Kg8 {[%clk 0:00:06.2]} 38. Qxg6+ {[%clk 0:00:02.3]}
38... Kh8 {[%clk 0:00:06.5]} 39. Qh6+ {[%clk 0:00:02.6]} 39... Kg8 {[%clk
0:00:06.9]} 40. Qg6+ {[%clk 0:00:03.4]} 40... Kh8 {[%clk 0:00:07.4]} 41. Qh6+
{[%clk 0:00:03.7]} 41... Kg8 {[%clk 0:00:07.9]} 42. Qg6+ {[%clk 0:00:04.2]}
1/2-1/2